bitfinex/quotes_BTCUSD_20241110
["timestamp","ask_amount","ask_price","bid_price","bid_amount"]
[1731259714089,0.31137287,79739.0,79738.0,0.73426221]
[1731259718648,0.31137287,79739.0,79738.0,0.9324705]
[1731259720191,0.31137287,79739.0,79738.0,1.0825252]
[1731259720431,0.31137287,79739.0,79738.0,1.00651691]
[1731259723159,0.31137287,79739.0,79738.0,0.9324705]
[1731259723798,0.31137287,79739.0,79738.0,1.03347879]
[1731259724000,0.31137287,79739.0,79738.0,0.9574705]
[1731259724198,0.28837287,79739.0,79738.0,0.9554705]
[1731259725662,0.28837287,79739.0,79738.0,1.00635902]
[1731259726960,0.26537287,79739.0,79738.0,1.00635902]
[1731259729216,0.26427029,79739.0,79738.0,1.00635902]
[1731259729695,0.26427029,79739.0,79738.0,0.93035073]
[1731259729924,0.26427029,79739.0,79738.0,1.00635902]
[1731259731134,0.26427029,79739.0,79738.0,0.93035073]
[1731259731341,0.26427029,79739.0,79738.0,0.73426221]
[1731259737243,0.26431029,79739.0,79738.0,0.73426221]
[1731259737463,0.26431029,79739.0,79738.0,0.88526221]
[1731259737899,0.26431029,79739.0,79738.0,0.9612705]
[1731259738440,0.26431029,79739.0,79738.0,1.03727879]
[1731259738644,0.26431029,79739.0,79738.0,0.9612705]
[1731259739100,0.24131029,79739.0,79738.0,0.9612705]
[1731259740505,0.24131029,79739.0,79738.0,1.0612705]
[1731259740734,0.24131029,79739.0,79738.0,1.14727879]
[1731259742003,0.21831029,79739.0,79738.0,1.14227879]
[1731259742204,0.21831029,79739.0,79738.0,1.14727879]
[1731259745117,0.70706061,79741.0,79740.0,0.165407]
[1731259745321,0.70706061,79741.0,79740.0,0.67136579]
[1731259745534,0.70706061,79741.0,79740.0,1.04758579]
[1731259746612,0.70706061,79741.0,79740.0,1.04558579]
[1731259746765,0.70706061,79741.0,79740.0,1.04758579]
[1731259747110,0.70706061,79741.0,79740.0,1.12359408]
[1731259747476,0.70706061,79741.0,79740.0,1.04758579]
[1731259747669,0.70706061,79741.0,79740.0,0.89556921]
[1731259747900,0.70706061,79741.0,79740.0,0.89356921]
[1731259748073,0.15062052,79741.0,79740.0,0.89556921]
[1731259748260,0.11846361,79741.0,79740.0,0.93196129]
[1731259748457,0.6389092,79743.0,79742.0,0.374204]
[1731259748667,0.5135042,79743.0,79742.0,0.93574829]
[1731259748866,0.5135042,79743.0,79742.0,0.93374829]
[1731259749064,0.4842942,79743.0,79742.0,1.16177316]
[1731259749732,0.2521422,79743.0,79742.0,1.16377316]
[1731259749937,0.70706061,79744.0,79742.0,1.16377316]
[1731259749938,0.70706061,79744.0,79743.0,0.142402]
[1731259750182,0.32391831,79744.0,79743.0,0.55953629]
[1731259750513,0.32391831,79744.0,79743.0,0.93574629]
[1731259750813,0.27375831,79744.0,79743.0,0.93574629]
[1731259751032,0.19851831,79744.0,79743.0,1.05137079]
[1731259751634,0.17343831,79744.0,79743.0,1.1382696]
[1731259751836,0.12327831,79744.0,79743.0,1.1382696]
[1731259752242,0.70706061,79770.0,79743.0,1.1382696]
[1731259752243,0.66126593,79746.0,79745.0,0.397199]
[1731259752419,0.62876309,79746.0,79745.0,0.55953329]
[1731259752619,0.57860309,79746.0,79745.0,0.93573329]
[1731259752905,0.50336309,79746.0,79745.0,0.93573329]
[1731259754078,0.43020309,79746.0,79745.0,0.93573329]
[1731259754280,0.32653509,79746.0,79745.0,0.93573329]
[1731259754677,0.22621509,79746.0,79745.0,0.93573329]
[1731259755017,0.22621509,79746.0,79745.0,0.89934121]
[1731259755018,0.20113509,79746.0,79745.0,0.89934121]
[1731259755741,0.15097509,79746.0,79745.0,0.89934121]
[1731259755949,0.12589509,79746.0,79745.0,0.89934121]
[1731259756152,0.07573509,79746.0,79745.0,0.89934121]
[1731259756323,0.07573509,79746.0,79745.0,0.9753495]
[1731259756694,0.00049609,79746.0,79745.0,0.9753495]
[1731259756894,0.6840607,79748.0,79747.0,0.142396]
[1731259757141,0.6840607,79748.0,79747.0,0.76752821]
[1731259758443,0.6840607,79748.0,79747.0,0.76552821]
[1731259758641,0.6840607,79748.0,79747.0,0.74252821]
[1731259759828,0.6840607,79748.0,79747.0,0.76552821]
[1731259762327,0.6840607,79748.0,79747.0,0.76752821]
[1731259762534,0.6840607,79748.0,79747.0,0.76552821]
[1731259762773,0.6849007,79748.0,79747.0,0.76552821]
[1731259763459,0.6848407,79748.0,79747.0,0.64252821]
[1731259763683,0.7610407,79748.0,79747.0,0.64252821]
[1731259764098,0.7609807,79748.0,79747.0,0.64252821]
[1731259764561,0.7609807,79748.0,79747.0,0.74252821]
[1731259766321,0.050411,79751.0,79747.0,0.74252821]
[1731259766322,0.46804131,79750.0,79749.0,0.230393]
[1731259766542,0.46804131,79750.0,79749.0,0.36633521]
[1731259766768,0.46804131,79750.0,79749.0,0.74251521]
[1731259769160,0.44504131,79750.0,79749.0,0.74251521]
[1731259770449,0.44504131,79750.0,79749.0,0.76751521]
[1731259772021,0.42204131,79750.0,79749.0,0.76751521]
[1731259773111,0.42204131,79750.0,79749.0,0.81747813]
[1731259776229,0.42204131,79750.0,79749.0,0.81915813]
[1731259776910,0.42204131,79750.0,79749.0,0.81715813]
[1731259783232,0.42164205,79750.0,79749.0,0.81715813]
[1731259784095,0.39864205,79750.0,79749.0,0.81715813]
[1731259787128,0.37564205,79750.0,79749.0,0.81715813]
[1731259789123,0.37648205,79750.0,79749.0,0.81715813]
[1731259792915,0.37648205,79750.0,79749.0,0.89313077]
[1731259795779,0.37648205,79750.0,79749.0,0.97333077]
[1731259797022,0.37648205,79750.0,79749.0,0.97133077]
[1731259797668,0.37648205,79750.0,79749.0,0.97333077]
[1731259799138,0.35348205,79750.0,79749.0,0.97333077]
[1731259800107,0.35348205,79750.0,79749.0,0.97133077]
[1731259800308,0.35348205,79750.0,79749.0,0.97333077]
[1731259802038,0.33048205,79750.0,79749.0,0.97133077]
[1731259802236,0.33048205,79750.0,79749.0,0.97333077]
[1731259803153,0.32548205,79750.0,79749.0,0.97333077]
[1731259803656,0.17548205,79750.0,79749.0,0.97333077]
[1731259805119,0.17548205,79750.0,79749.0,0.81715813]
[1731259805321,0.17548205,79750.0,79749.0,0.89313077]
[1731259806490,0.17548205,79750.0,79749.0,0.81715813]
[1731259806727,0.17548205,79750.0,79749.0,0.89313077]
[1731259809427,0.17548205,79750.0,79749.0,0.81715813]
[1731259811985,0.17548205,79750.0,79749.0,0.81615813]
[1731259813163,0.17548205,79750.0,79749.0,0.81815813]
[1731259813551,0.17548205,79750.0,79749.0,0.81615813]
[1731259814228,0.15248205,79750.0,79749.0,0.81815813]
[1731259815408,0.15248205,79750.0,79749.0,0.81615813]
[1731259816935,0.12948205,79750.0,79749.0,0.81615813]
[1731259817571,0.12948205,79750.0,79749.0,0.81815813]
[1731259820238,0.12948205,79750.0,79749.0,0.89413077]
[1731259820437,0.00409205,79750.0,79749.0,0.93933077]
[1731259821835,0.00409205,79750.0,79749.0,0.86335813]
[1731259822033,0.00409205,79750.0,79749.0,1.01530341]
[1731259822948,0.00409205,79750.0,79749.0,0.93933077]
[1731259823924,0.00409205,79750.0,79749.0,0.86335813]
[1731259824136,0.00409205,79750.0,79749.0,0.93933077]
[1731259824555,0.00409205,79750.0,79749.0,0.86135813]
[1731259825011,0.70186366,79752.0,79751.0,0.13939]
[1731259825163,0.70186366,79752.0,79751.0,0.76450221]
[1731259826949,0.70186366,79752.0,79751.0,0.8802406]
[1731259829030,0.67886366,79752.0,79751.0,0.8802406]
[1731259830423,0.67886366,79752.0,79751.0,0.8822406]
[1731259832054,0.65586366,79752.0,79751.0,0.8822406]
[1731259832287,0.65586366,79752.0,79751.0,1.07817385]
[1731259832811,0.65586366,79752.0,79751.0,1.04537899]
[1731259833278,0.53047366,79752.0,79751.0,1.15957385]
[1731259833483,0.53047366,79752.0,79751.0,1.19337884]
[1731259833594,0.45523966,79752.0,79751.0,1.19337884]
[1731259833803,0.40508366,79752.0,79751.0,1.16058398]
[1731259834214,0.70777061,79754.0,79753.0,0.241387]
[1731259834215,0.62674817,79754.0,79753.0,0.241387]
[1731259834482,0.6214265,79754.0,79753.0,0.5529342]
[1731259834727,0.4960415,79754.0,79753.0,0.9290942]
[1731259834930,0.4960415,79754.0,79753.0,0.9270942]
[1731259835543,0.4709645,79754.0,79753.0,0.9290942]
[1731259835949,0.40301576,79754.0,79753.0,0.9290942]
[1731259836573,0.40301576,79754.0,79753.0,0.89328921]
[1731259836888,0.40301576,79754.0,79753.0,1.0110276]
[1731259837435,0.40301576,79754.0,79753.0,1.0090276]
[1731259837822,0.40301576,79754.0,79753.0,1.0110276]
[1731259840078,0.40131898,79754.0,79753.0,1.03473334]
[1731259840426,0.40131898,79754.0,79753.0,1.0110276]
[1731259841047,0.40131898,79754.0,79753.0,1.0090276]
[1731259841392,0.40131898,79754.0,79753.0,1.0110276]
[1731259841541,0.40131898,79754.0,79753.0,1.0090276]
[1731259841915,0.40131898,79754.0,79753.0,1.0110276]
[1731259842329,0.40131898,79754.0,79753.0,1.04563729]
[1731259842739,0.40131898,79754.0,79753.0,1.0110276]
[1731259843962,0.37831898,79754.0,79753.0,1.0110276]
[1731259844723,0.37831898,79754.0,79753.0,1.0591236]
[1731259844940,0.37831898,79754.0,79753.0,1.0611236]
[1731259846502,0.37831898,79754.0,79753.0,1.22701714]
[1731259846979,0.37831898,79754.0,79753.0,1.22701214]
[1731259847208,0.37831898,79754.0,79753.0,1.0611236]
[1731259847209,0.35531898,79754.0,79753.0,1.0611236]
[1731259847377,0.35531898,79754.0,79753.0,1.22501214]
[1731259847576,0.35531898,79754.0,79753.0,1.22701214]
[1731259848149,0.35531898,79754.0,79753.0,1.0611236]
[1731259848570,0.35531898,79754.0,79753.0,1.22498381]
[1731259848927,0.34707225,79754.0,79753.0,1.22698372]
[1731259849146,0.34707225,79754.0,79753.0,1.0591236]
[1731259850220,0.34707225,79754.0,79753.0,1.22698372]
[1731259850587,0.34707225,79754.0,79753.0,1.22496789]
[1731259850811,0.34707225,79754.0,79753.0,0.81658521]
[1731259850974,0.34707225,79754.0,79753.0,1.09816469]
[1731259851626,0.34707225,79754.0,79753.0,0.9323236]
[1731259851832,0.34707225,79754.0,79753.0,0.81658521]
[1731259852942,0.34707225,79754.0,79753.0,1.13228486]
[1731259853535,0.34707225,79754.0,79753.0,1.13428486]
[1731259853895,0.34707225,79754.0,79753.0,0.96844377]
[1731259854139,0.34707225,79754.0,79753.0,1.06844377]
[1731259856869,0.34707225,79754.0,79753.0,1.06644377]
[1731259857743,0.34707225,79754.0,79753.0,1.18954377]
[1731259857876,0.34707225,79754.0,79753.0,1.18754377]
[1731259858775,0.34707225,79754.0,79753.0,1.03568521]
[1731259858978,0.34707225,79754.0,79753.0,1.18754377]
[1731259859187,0.34707225,79754.0,79753.0,1.18954377]
[1731259859188,0.32407225,79754.0,79753.0,1.18954377]
[1731259859534,0.32407225,79754.0,79753.0,1.18926544]
[1731259861052,0.32407225,79754.0,79753.0,1.18894544]
[1731259861248,0.32407225,79754.0,79753.0,1.03908688]
[1731259861449,0.32407225,79754.0,79753.0,1.19094544]
[1731259862062,0.30107225,79754.0,79753.0,1.19094544]
[1731259862443,0.30107225,79754.0,79753.0,1.18894544]
[1731259862641,0.30107225,79754.0,79753.0,1.19094544]
[1731259864387,0.30107225,79754.0,79753.0,1.03908688]
[1731259864679,0.30107225,79754.0,79753.0,1.14504544]
[1731259864888,0.30107225,79754.0,79753.0,1.10889269]
[1731259865051,0.30107225,79754.0,79753.0,1.10689269]
[1731259865245,0.30107225,79754.0,79753.0,1.10889269]
[1731259865454,0.30107225,79754.0,79753.0,1.10689269]
[1731259865994,0.30107225,79754.0,79753.0,1.03169269]
[1731259866156,0.30107225,79754.0,79753.0,1.03369269]
[1731259868404,0.30107225,79754.0,79753.0,1.03169269]
[1731259868586,0.30101225,79754.0,79753.0,1.03169269]
[1731259868780,0.30101225,79754.0,79753.0,1.03369269]
[1731259869006,0.30101225,79754.0,79753.0,1.03169269]
[1731259869409,0.52125676,79755.0,79754.0,0.22032167]
[1731259869641,0.52125676,79755.0,79754.0,0.36248554]
[1731259869842,0.52125676,79755.0,79754.0,0.72242388]
[1731259870047,0.52125676,79755.0,79754.0,0.73864554]
[1731259870048,0.33158224,79755.0,79754.0,0.73864554]
[1731259870249,0.33158224,79755.0,79754.0,1.0022355]
[1731259870886,0.28462488,79755.0,79754.0,1.03684519]
[1731259871041,0.28462488,79755.0,79754.0,1.20266246]
[1731259871253,0.28462488,79755.0,79754.0,1.20265835]
[1731259871457,0.28462488,79755.0,79754.0,0.80543357]
[1731259871631,0.28462488,79755.0,79754.0,0.88652969]
[1731259872011,0.28462488,79755.0,79754.0,0.77082388]
[1731259872212,0.28462488,79755.0,79754.0,0.88652969]
[1731259872656,0.28462488,79755.0,79754.0,1.05231519]
[1731259872854,0.18833456,79762.0,79755.0,0.03872167]
[1731259873027,0.18833456,79762.0,79755.0,0.26466388]
[1731259873234,0.70706061,79764.0,79755.0,0.26466388]
[1731259873235,0.70706061,79764.0,79755.0,0.64081388]
[1731259873436,0.2413689,79757.0,79756.0,0.26872167]
[1731259873632,0.70706061,79764.0,79756.0,0.26872167]
[1731259873633,0.32679946,79761.0,79760.0,0.26872167]
[1731259873917,0.03970345,79761.0,79760.0,1.0022055]
[1731259874810,0.20456488,79764.0,79763.0,0.26872167]
[1731259875011,0.61160122,79768.0,79767.0,0.26872167]
[1731259875164,0.00071,79779.0,79771.0,0.01572167]
[1731259875366,0.00071,79779.0,79771.0,0.39466388]
[1731259875711,0.00071,79779.0,79771.0,0.80535357]
[1731259876158,0.00071,79787.0,79786.0,0.01572167]
[1731259876365,0.18833456,79798.0,79795.0,0.01572167]
[1731259876541,0.18833456,79798.0,79795.0,0.03872167]
[1731259876836,0.18833456,79814.0,79795.0,0.55211432]
[1731259877060,0.18833456,79814.0,79795.0,0.55011432]
[1731259877214,0.18833456,79814.0,79795.0,0.67805653]
[1731259877419,0.18833456,79814.0,79795.0,0.75965653]
[1731259878042,0.18833456,79805.0,79795.0,0.65305653]
[1731259878303,0.18833456,79805.0,79795.0,0.61562388]
[1731259878816,0.18833456,79805.0,79795.0,0.61762388]
[1731259879018,0.18833456,79805.0,79795.0,0.61562388]
[1731259879222,0.18833456,79805.0,79804.0,0.01372167]
[1731259879223,0.12685456,79805.0,79804.0,0.01372167]
[1731259879424,0.12685456,79805.0,79804.0,0.22994221]
[1731259879648,0.0818,79807.0,79804.0,0.22994221]
[1731259879649,0.0818,79807.0,79806.0,0.032]
[1731259879890,0.0818,79807.0,79806.0,0.23494221]
[1731259880094,0.0818,79807.0,79806.0,0.61085221]
[1731259880450,0.0818,79807.0,79806.0,0.60585221]
[1731259881312,0.0818,79807.0,79806.0,0.61557388]
[1731259882805,0.0818,79807.0,79806.0,0.63857388]
[1731259885307,0.0818,79807.0,79806.0,0.62885221]
[1731259885508,0.08264,79807.0,79806.0,0.60585221]
[1731259885729,0.08264,79807.0,79806.0,0.50585221]
[1731259885851,0.09126651,79807.0,79806.0,0.50185221]
[1731259886599,0.13706651,79807.0,79806.0,0.50185221]
[1731259889662,0.13700651,79807.0,79806.0,0.50185221]
[1731259890691,0.11400651,79807.0,79806.0,0.50185221]
[1731259892052,0.09100651,79807.0,79806.0,0.50185221]
[1731259893851,0.09094651,79807.0,79806.0,0.50185221]
[1731259895888,0.09094651,79807.0,79806.0,0.50585221]
[1731259896433,0.04664,79807.0,79806.0,0.50585221]
[1731259896952,0.04664,79807.0,79806.0,0.50753221]
[1731259897164,0.00084,79807.0,79806.0,0.50753221]
[1731259897614,0.00078,79807.0,79806.0,0.50753221]
[1731259898518,0.00072,79807.0,79806.0,0.53053221]
[1731259898720,0.00066,79807.0,79806.0,0.53053221]
[1731259899303,0.0006,79807.0,79806.0,0.53053221]
[1731259899718,0.00054,79807.0,79806.0,0.53053221]
[1731259900677,0.00054,79807.0,79806.0,0.53253221]
[1731259901541,0.00054,79807.0,79806.0,0.53053221]
[1731259902207,0.00071,79817.0,79806.0,0.53053221]
[1731259902208,0.00071,79817.0,79816.0,0.004]
[1731259902458,0.00071,79817.0,79816.0,0.12994221]
[1731259902632,0.00071,79817.0,79816.0,0.50580221]
[1731259902854,0.00071,79817.0,79816.0,0.52880221]
[1731259903059,0.00071,79817.0,79816.0,0.64052388]
[1731259903264,0.00071,79817.0,79816.0,0.67970968]
[1731259903461,0.00071,79817.0,79816.0,0.73047517]
[1731259903947,0.00071,79817.0,79816.0,0.68928937]
[1731259904635,0.00065,79817.0,79816.0,0.63852388]
[1731259904860,0.00071,79830.0,79828.0,0.004]
[1731259904861,0.18412456,79829.0,79828.0,0.004]
[1731259905031,0.18412456,79829.0,79828.0,0.12994221]
[1731259905243,0.00071,79830.0,79829.0,0.004]
[1731259905446,0.00071,79830.0,79829.0,0.12994221]
[1731259905600,0.00071,79830.0,79829.0,0.11657398]
[1731259905817,0.00071,79830.0,79829.0,0.49237398]
[1731259906226,0.09511414,79834.0,79829.0,0.49237398]
[1731259907304,0.0498252,79840.0,79829.0,0.49237398]
[1731259907574,0.16553101,79840.0,79829.0,0.49237398]
[1731259908608,0.0467,79836.0,79829.0,0.49237398]
[1731259910868,0.11570581,79834.0,79829.0,0.49237398]
[1731259914147,0.19300581,79840.0,79829.0,0.49237398]
[1731259914926,0.19300581,79840.0,79829.0,0.42237398]
[1731259917778,0.11570581,79840.0,79830.0,0.0809]
[1731259917982,0.11570581,79840.0,79831.0,0.12594221]
[1731259918166,0.11570581,79840.0,79831.0,0.50173221]
[1731259918618,0.05039179,79841.0,79831.0,0.50173221]
[1731259919163,0.0775,79848.0,79831.0,0.50173221]
[1731259919164,0.005,79865.0,79834.0,0.14894221]
[1731259919376,0.09340009,79897.0,79852.0,0.18833456]
[1731259919586,0.11570581,79927.0,79911.0,0.005]
[1731259919809,0.04991193,79914.0,79913.0,0.125136]
[1731259920043,0.11570581,79914.0,79913.0,0.125136]
[1731259920282,0.005,79923.0,79913.0,0.37541]
[1731259920490,0.05140608,79927.0,79913.0,0.500545]
[1731259920491,0.11570581,79915.0,79913.0,0.500545]
[1731259920702,0.09070581,79915.0,79913.0,0.37541]
[1731259921367,0.0775,79914.0,79913.0,0.37541]
[1731259921576,0.078339,79914.0,79913.0,0.37541]
[1731259921777,0.208473,79914.0,79913.0,0.37161]
[1731259922076,0.208473,79914.0,79913.0,0.36211]
[1731259922285,0.208473,79914.0,79913.0,0.35641]
[1731259922497,0.308473,79914.0,79913.0,0.34881]
[1731259922962,0.285473,79914.0,79913.0,0.34881]
[1731259923381,0.105,79914.0,79913.0,0.34881]
[1731259923582,0.3085027,79914.0,79913.0,0.34881]
[1731259923819,0.005,79903.0,79889.0,0.005]
[1731259924029,0.11570581,79890.0,79889.0,0.005]
[1731259924236,0.11570581,79890.0,79884.0,0.12518]
[1731259924465,1.5,79890.0,79889.0,0.37552]
[1731259924663,1.625172,79890.0,79889.0,0.37552]
[1731259925782,1.8975414,79890.0,79889.0,0.37552]
[1731259925985,0.125201,79872.0,79866.0,0.19276522]
[1731259926101,0.11570581,79867.0,79866.0,0.19276522]
[1731259926300,0.250394,79875.0,79867.0,0.25991419]
[1731259926536,0.11570581,79868.0,79867.0,0.25991419]
[1731259926890,0.11564581,79868.0,79867.0,0.25991419]
[1731259927315,0.11558581,79868.0,79867.0,0.25991419]
[1731259927530,0.05010987,79871.0,79869.0,0.005]
[1731259927745,0.11570581,79870.0,79867.0,0.25991419]
[1731259928015,0.11570581,79873.0,79870.0,0.37561419]
[1731259928182,0.24090481,79873.0,79870.0,0.37561419]
[1731259928400,0.11570581,79873.0,79871.0,0.37562]
[1731259930075,0.1252,79872.0,79871.0,0.37562]
[1731259930506,0.24090581,79872.0,79871.0,0.37562]
[1731259930719,0.1252,79872.0,79871.0,0.37562]
[1731259931290,0.11570581,79873.0,79871.0,0.37562]
[1731259931498,0.1252,79872.0,79871.0,0.37562]
[1731259932159,1.6252,79872.0,79871.0,0.47562]
[1731259932287,1.62514,79872.0,79871.0,0.47562]
[1731259932705,1.62514,79872.0,79871.0,0.477296]
[1731259933319,1.62508,79872.0,79871.0,0.477296]
[1731259933737,0.12508,79872.0,79871.0,0.477296]
[1731259934176,0.12502,79872.0,79871.0,0.477296]
[1731259935010,0.12496,79872.0,79871.0,0.477296]
[1731259937186,0.1019,79872.0,79871.0,0.477296]
[1731259937786,0.05534851,79877.0,79871.0,0.477296]
[1731259938118,0.05034851,79877.0,79871.0,0.477296]
[1731259938349,0.18776522,79878.0,79871.0,0.477296]
[1731259938566,0.18776522,79878.0,79873.0,0.125198]
[1731259938802,0.18776522,79878.0,79875.0,0.127194]
[1731259939025,0.18776522,79878.0,79876.0,0.125192]
[1731259939230,0.005,79881.0,79876.0,0.125192]
[1731259939449,0.12519,79879.0,79875.0,0.002]
[1731259939664,0.125188,79880.0,79875.0,0.002]
[1731259939873,0.11570581,79878.0,79874.0,0.652]
[1731259940231,0.24089681,79878.0,79874.0,0.652]
[1731259940625,0.11570581,79878.0,79876.0,0.002]
[1731259941033,0.11570581,79878.0,79877.0,0.65199]
[1731259941259,0.00494,79883.0,79877.0,0.65199]
[1731259941489,0.00494,79880.0,79877.0,0.65199]
[1731259941693,0.12519,79879.0,79877.0,0.65199]
[1731259941921,0.00494,79880.0,79877.0,0.65199]
[1731259941922,0.12519,79878.0,79877.0,0.65199]
[1731259942439,0.00494,79884.0,79878.0,0.12519]
[1731259942661,0.00494,79880.0,79877.0,0.65199]
[1731259942907,0.12519,79878.0,79877.0,0.65199]
[1731259944024,0.24089581,79878.0,79877.0,0.65199]
[1731259944433,0.21873481,79878.0,79877.0,0.65199]
[1731259950858,0.26915698,79878.0,79877.0,0.65199]
[1731259952178,0.16696698,79878.0,79877.0,0.65199]
[1731259952384,0.29215698,79878.0,79877.0,0.65199]
[1731259953264,0.26915698,79878.0,79877.0,0.65199]
[1731259953487,0.05042217,79878.0,79877.0,0.65199]
[1731259953729,0.255315,79880.0,79877.0,0.65199]
[1731259953953,0.12513,79878.0,79877.0,0.65199]
[1731259954181,0.00494,79881.0,79877.0,0.65199]
[1731259954392,0.05472313,79880.0,79877.0,0.65199]
[1731259954595,0.12519,79878.0,79877.0,0.65199]
[1731259955774,0.12519,79878.0,79877.0,0.653668]
[1731259958334,0.005779,79880.0,79877.0,0.653668]
[1731259958535,0.12519,79878.0,79877.0,0.653668]
[1731259959201,0.005779,79880.0,79877.0,0.77886]
[1731259959401,0.130967,79880.0,79877.0,0.653668]
[1731259960003,0.125189,79879.0,79877.0,0.653668]
[1731259960207,0.12519,79878.0,79877.0,0.653668]
[1731259961618,0.125189,79879.0,79877.0,0.653668]
[1731259962237,0.12519,79878.0,79877.0,0.653668]
[1731259964669,0.12519,79878.0,79877.0,0.648668]
[1731259965958,0.130129,79879.0,79877.0,0.648668]
[1731259966247,0.000839,79880.0,79877.0,0.648668]
[1731259966828,0.126027,79880.0,79877.0,0.648668]
[1731259967000,0.125189,79879.0,79877.0,0.648668]
[1731259967927,0.125188,79880.0,79877.0,0.648668]
[1731259968175,0.12519,79879.0,79877.0,0.648668]
[1731259968378,0.12603,79878.0,79877.0,0.648668]
[1731259969815,0.68226252,79878.0,79877.0,0.648668]
[1731259970153,0.4456145,79878.0,79877.0,0.53734405]
[1731259971567,0.4456145,79878.0,79877.0,0.001678]
[1731259973150,1.9456145,79878.0,79877.0,0.001678]
[1731259973611,0.14014,79872.0,79871.0,0.101676]
[1731259973776,0.67219591,79872.0,79871.0,0.101676]
[1731259976098,0.5564901,79872.0,79871.0,0.101676]
[1731259976706,2.0564901,79872.0,79871.0,0.101676]
[1731259977481,0.05081816,79872.0,79871.0,0.226877]
[1731259977753,0.00494,79876.0,79871.0,0.226877]
[1731259977754,0.130134,79876.0,79871.0,0.226877]
[1731259977896,0.00494,79876.0,79871.0,0.101676]
[1731259978446,0.00494,79872.0,79871.0,0.101676]
[1731259979612,0.05030489,79876.0,79871.0,0.101676]
[1731259979813,0.12064581,79872.0,79871.0,0.226877]
[1731259980653,0.12064581,79872.0,79871.0,0.101676]
[1731259980820,0.12064581,79872.0,79871.0,0.226877]
[1731259981022,0.12064581,79872.0,79871.0,0.101676]
[1731259981230,0.12064581,79872.0,79871.0,0.226877]
[1731259981424,0.11570581,79872.0,79871.0,0.226877]
[1731259981627,0.00494,79874.0,79873.0,0.125198]
[1731259982108,0.13402861,79877.0,79872.0,0.002]
[1731259982236,0.13402861,79877.0,79871.0,0.101676]
[1731259982426,0.11570581,79872.0,79871.0,0.101676]
[1731259982627,0.11570581,79872.0,79871.0,0.226877]
[1731259983041,0.13402861,79877.0,79871.0,0.101676]
[1731259983042,0.03402861,79877.0,79871.0,0.101676]
[1731259983282,0.11570581,79876.0,79873.0,0.125197]
[1731259983858,0.11570581,79876.0,79871.0,0.226876]
[1731259984679,0.11570581,79876.0,79871.0,0.101676]
[1731259986121,0.11570581,79876.0,79872.0,0.125199]
[1731259986550,0.11570581,79876.0,79871.0,0.101676]
[1731259986551,0.18776522,79875.0,79871.0,0.101676]
[1731259986751,0.11570581,79876.0,79871.0,0.101676]
[1731259987078,0.05180554,79878.0,79877.0,0.125192]
[1731259987533,0.05180554,79878.0,79871.0,0.601676]
[1731259987686,0.05180554,79878.0,79874.0,0.125196]
[1731259987889,0.05180554,79878.0,79872.0,0.250398]
[1731259988098,0.05180554,79878.0,79871.0,0.601676]
[1731259988099,0.16751135,79878.0,79871.0,0.601676]
[1731259988342,0.16751135,79878.0,79875.0,0.125195]
[1731259988548,0.16751135,79878.0,79873.0,0.125198]
[1731259990456,0.16751135,79878.0,79874.0,0.125196]
[1731259991483,0.16484146,79878.0,79875.0,0.00168]
[1731259995426,0.125194,79876.0,79875.0,0.00168]
[1731259995642,0.033,79877.0,79875.0,0.00168]
[1731259996030,0.125194,79876.0,79875.0,0.00168]
[1731259996315,0.47582583,79876.0,79875.0,0.00168]
[1731259996521,0.09898381,79876.0,79875.0,0.00168]
[1731259996728,0.16484146,79878.0,79875.0,0.00168]
[1731259997073,0.14184146,79878.0,79875.0,0.00168]
[1731259997278,0.01,79876.0,79875.0,0.00168]
[1731259997480,0.033,79876.0,79875.0,0.00168]
[1731259998883,0.005,79876.0,79875.0,0.00168]
[1731259999754,0.130194,79876.0,79875.0,0.00168]
[1731259999955,0.005,79876.0,79875.0,0.00168]
[1731260002526,0.00342419,79877.0,79875.0,0.00168]
[1731260002734,0.00426419,79877.0,79876.0,0.0788]
[1731260002957,0.00426419,79877.0,79876.0,0.203994]
[1731260003150,0.00426419,79877.0,79876.0,0.205994]
[1731260003383,0.00426419,79877.0,79876.0,0.203994]
[1731260007803,0.00426419,79877.0,79876.0,0.0788]
[1731260008209,0.00426419,79877.0,79876.0,0.203994]
[1731260008825,0.926463,79897.0,79876.0,0.203994]
[1731260009084,0.11570581,79883.0,79878.0,0.12519]
[1731260009304,0.250338,79892.0,79876.0,0.329187]
[1731260009424,0.11570581,79891.0,79878.0,0.002]
[1731260009852,0.11570581,79890.0,79878.0,0.002]
[1731260010062,0.11570581,79890.0,79886.0,0.125177]
[1731260010477,0.11570581,79890.0,79884.0,0.125181]
[1731260010680,0.11570581,79890.0,79881.0,0.250372]
[1731260010942,0.11570581,79890.0,79885.0,0.125179]
[1731260011176,0.11570581,79890.0,79883.0,0.125182]
[1731260011313,0.11570581,79890.0,79881.0,0.002]
[1731260011518,0.1,79895.0,79889.0,0.125173]
[1731260011716,0.17646122,79896.0,79895.0,0.125164]
[1731260011717,0.05051901,79896.0,79895.0,0.125164]
[1731260011942,0.18776522,79898.0,79893.0,0.0764]
[1731260012204,0.18776522,79898.0,79897.0,0.132161]
[1731260012205,0.04985355,79898.0,79897.0,0.132161]
[1731260012407,0.18776522,79906.0,79902.0,0.005]
[1731260012605,0.18776522,79906.0,79905.0,0.125148]
[1731260013029,0.11570581,79910.0,79902.0,0.005]
[1731260013236,0.11564581,79910.0,79902.0,0.005]
[1731260013448,0.11570581,79907.0,79902.0,0.005]
[1731260013880,0.11564581,79907.0,79902.0,0.005]
[1731260014334,0.21725425,79914.0,79902.0,0.005]
[1731260014335,0.11570581,79913.0,79902.0,0.0814]
[1731260014533,0.30347103,79913.0,79902.0,0.0814]
[1731260015131,0.11570581,79913.0,79907.0,0.0764]
[1731260016361,0.125139,79912.0,79907.0,0.0764]
[1731260016735,0.250275,79912.0,79907.0,0.0764]
[1731260016863,0.125143,79908.0,79907.0,0.0764]
[1731260017483,0.25031,79901.0,79895.0,0.0764]
[1731260017682,0.12594221,79908.0,79895.0,0.0764]
[1731260017683,0.125162,79896.0,79895.0,0.0764]
[1731260019206,0.11570581,79900.0,79895.0,0.0764]
[1731260019405,0.125161,79898.0,79895.0,0.0764]
[1731260019769,0.125162,79896.0,79895.0,0.0764]
[1731260021319,0.125162,79896.0,79888.0,0.0764]
[1731260021320,0.250341,79891.0,79888.0,0.0764]
[1731260021539,0.24087881,79889.0,79888.0,0.0764]
[1731260021749,0.24087981,79889.0,79872.0,0.13080822]
[1731260021948,0.11570581,79889.0,79872.0,0.13080822]